[Event "The Schackveckan 2023: Göteborg open"]
[Site "Göteborgs schackcentrum, Vegagatan 20, Gothenburg, Sweden"]
[Date "2023.08.12"]
[Round "6.12"]
[White "Wennerlund, Elias"]
[Black "Johansson, Roy"]
[Result "0-1"]
[TimeControl "15 minutes + 5 seconds per move from move one (Round 1 - 4) / 90 minutes + 30 seconds per move from move one (Round 5 - 8)"]
[WhiteFideId "1742353"]
[BlackFideId "1745972"]
[WhiteElo "1710"]
[BlackElo "1890"]

1. e4 {[%clk 01:30:54]} {[%emt 00:00:06]} e6 {[%clk 01:30:52]} {[%emt
00:00:08]} 2. Nf3 {[%clk 01:31:10]} {[%emt 00:00:15]} d5 {[%clk 01:31:05]}
{[%emt 00:00:17]} 3. Nc3 {[%clk 01:31:28]} {[%emt 00:00:11]} d4 {[%clk
01:30:01]} {[%emt 00:01:34]} 4. Ne2 {[%clk 01:31:42]} {[%emt 00:00:16]} c5
{[%clk 01:29:48]} {[%emt 00:00:42]} 5. c3 {[%clk 01:32:04]} {[%emt 00:00:08]}
Nc6 {[%clk 01:29:41]} {[%emt 00:00:38]} 6. cxd4 {[%clk 01:32:22]} {[%emt
00:00:12]} cxd4 {[%clk 01:29:43]} {[%emt 00:00:28]} 7. Qa4 {[%clk 01:32:39]}
{[%emt 00:00:12]} Bc5 {[%clk 01:28:23]} {[%emt 00:01:50]} 8. b4 {[%clk
01:32:57]} {[%emt 00:00:13]} Bb6 {[%clk 01:26:12]} {[%emt 00:02:41]} 9. b5
{[%clk 01:30:38]} {[%emt 00:02:49]} Nce7 {[%clk 01:19:58]} {[%emt 00:06:44]} 10.
Nexd4 {[%clk 01:29:22]} {[%emt 00:01:45]} Nf6 {[%clk 01:18:25]} {[%emt
00:02:04]} 11. d3 {[%clk 01:17:05]} {[%emt 00:12:47]} e5 {[%clk 01:14:08]}
{[%emt 00:04:46]} 12. Nc2 {[%clk 01:12:30]} {[%emt 00:05:05]} Qc7 {[%clk
01:13:11]} {[%emt 00:01:28]} 13. Bb2 {[%clk 01:07:18]} {[%emt 00:05:42]} Ng4
{[%clk 01:11:29]} {[%emt 00:02:12]} 14. Ne3 {[%clk 00:57:55]} {[%emt 00:09:53]}
Nxe3 {[%clk 01:05:09]} {[%emt 00:06:50]} 15. fxe3 {[%clk 00:58:10]} {[%emt
00:00:15]} Ng6 {[%clk 01:01:24]} {[%emt 00:04:15]} 16. Rc1 {[%clk 00:54:23]}
{[%emt 00:04:17]} Qd8 {[%clk 01:01:16]} {[%emt 00:00:37]} 17. Nxe5 {[%clk
00:39:32]} {[%emt 00:15:22]} Nxe5 {[%clk 00:56:08]} {[%emt 00:05:36]} 18. Bxe5
{[%clk 00:39:55]} {[%emt 00:00:09]} O-O {[%clk 00:55:45]} {[%emt 00:00:52]} 19.
Bd4 {[%clk 00:35:30]} {[%emt 00:04:55]} Qg5 {[%clk 00:50:35]} {[%emt 00:05:41]}
20. Kd2 {[%clk 00:20:38]} {[%emt 00:15:22]} Be6 {[%clk 00:48:03]} {[%emt
00:03:02]} 21. h4 {[%clk 00:11:00]} {[%emt 00:10:08]} Qg3 {[%clk 00:47:23]}
{[%emt 00:01:09]} 22. Be2 {[%clk 00:07:46]} {[%emt 00:03:45]} Rfd8 {[%clk
00:45:34]} {[%emt 00:02:19]} 23. Bc5 {[%clk 00:06:47]} {[%emt 00:01:29]} Qe5
{[%clk 00:35:07]} {[%emt 00:10:57]} 24. Bb4 {[%clk 00:05:44]} {[%emt 00:01:33]}
Qxe4 {[%clk 00:32:59]} {[%emt 00:02:37]} 25. d4 {[%clk 00:02:28]} {[%emt
00:03:46]} Bxd4 {[%clk 00:30:05]} {[%emt 00:03:24]} 0-1

[Event "The Schackveckan 2023: Göteborg open"]
[Site "Göteborgs schackcentrum, Vegagatan 20, Gothenburg, Sweden"]
[Date "2023.08.12"]
[Round "6.13"]
[White "Thern, Alfred"]
[Black "Havner, Arvid"]
[Result "1-0"]
[TimeControl "15 minutes + 5 seconds per move from move one (Round 1 - 4) / 90 minutes + 30 seconds per move from move one (Round 5 - 8)"]
[WhiteFideId "1775227"]
[BlackFideId "1769308"]
[WhiteElo "1643"]
[BlackElo "1825"]

1. d4 {[%clk 01:29:31]} {[%emt 00:01:30]} Nf6 {[%clk 01:29:15]} {[%emt
00:01:45]} 2. Bf4 {[%clk 01:29:48]} {[%emt 00:00:11]} d5 {[%clk 01:29:03]}
{[%emt 00:00:43]} 3. e3 {[%clk 01:30:04]} {[%emt 00:00:15]} c5 {[%clk
01:29:07]} {[%emt 00:00:23]} 4. Nf3 {[%clk 01:30:26]} {[%emt 00:00:09]} Nc6
{[%clk 01:29:02]} {[%emt 00:00:36]} 5. Nbd2 {[%clk 01:30:48]} {[%emt 00:00:09]}
Bf5 {[%clk 01:28:41]} {[%emt 00:00:50]} 6. Be2 {[%clk 01:29:05]} {[%emt
00:02:13]} e6 {[%clk 01:28:29]} {[%emt 00:00:41]} 7. Nh4 {[%clk 01:28:35]}
{[%emt 00:01:01]} Bg6 {[%clk 01:16:22]} {[%emt 00:12:37]} 8. Nxg6 {[%clk
01:28:37]} {[%emt 00:00:27]} hxg6 {[%clk 01:16:50]} {[%emt 00:00:02]} 9. c3
{[%clk 01:26:01]} {[%emt 00:03:07]} cxd4 {[%clk 01:05:19]} {[%emt 00:12:01]} 10.
exd4 {[%clk 01:26:17]} {[%emt 00:00:14]} Bd6 {[%clk 01:04:57]} {[%emt
00:00:51]} 11. Bxd6 {[%clk 01:26:22]} {[%emt 00:00:26]} Qxd6 {[%clk 01:05:25]}
{[%emt 00:00:02]} 12. Nf3 {[%clk 01:25:23]} {[%emt 00:01:29]} a6 {[%clk
01:03:25]} {[%emt 00:02:30]} 13. g3 {[%clk 01:17:56]} {[%emt 00:07:53]} Ke7
{[%clk 01:02:19]} {[%emt 00:01:40]} 14. O-O {[%clk 01:17:30]} {[%emt 00:00:56]}
Ne4 {[%clk 00:52:59]} {[%emt 00:09:50]} 15. Re1 {[%clk 01:16:00]} {[%emt
00:01:59]} b5 {[%clk 00:52:18]} {[%emt 00:01:11]} 16. Bd3 {[%clk 01:12:37]}
{[%emt 00:03:54]} Nf6 {[%clk 00:48:58]} {[%emt 00:03:49]} 17. Ne5 {[%clk
01:11:12]} {[%emt 00:01:56]} Rh5 {[%clk 00:48:39]} {[%emt 00:00:48]} 18. f4
{[%clk 01:07:11]} {[%emt 00:04:32]} Rah8 {[%clk 00:47:43]} {[%emt 00:01:25]} 19.
h4 {[%clk 01:04:35]} {[%emt 00:03:07]} Nd7 {[%clk 00:46:57]} {[%emt 00:01:14]}
20. Qf3 {[%clk 00:53:41]} {[%emt 00:11:26]} Ndxe5 {[%clk 00:41:31]} {[%emt
00:05:56]} 21. fxe5 {[%clk 00:54:09]} {[%emt 00:00:03]} Qd7 {[%clk 00:39:59]}
{[%emt 00:01:59]} 22. Rf1 {[%clk 00:53:05]} {[%emt 00:01:36]} Nd8 {[%clk
00:40:13]} {[%emt 00:00:15]} 23. a4 {[%clk 00:50:12]} {[%emt 00:03:24]} g5
{[%clk 00:33:14]} {[%emt 00:07:27]} 24. axb5 {[%clk 00:50:20]} {[%emt
00:00:24]} axb5 {[%clk 00:28:13]} {[%emt 00:05:30]} 25. Ra5 {[%clk 00:49:30]}
{[%emt 00:01:21]} Kf8 {[%clk 00:21:14]} {[%emt 00:07:29]} 26. Bxb5 {[%clk
00:47:07]} {[%emt 00:02:53]} Qb7 {[%clk 00:21:05]} {[%emt 00:00:36]} 27. Rfa1
{[%clk 00:46:27]} {[%emt 00:01:12]} gxh4 {[%clk 00:20:21]} {[%emt 00:01:14]} 28.
g4 {[%clk 00:43:42]} {[%emt 00:03:16]} R5h7 {[%clk 00:19:26]} {[%emt 00:01:24]}
29. Ra8 {[%clk 00:41:03]} {[%emt 00:03:09]} Qxb5 {[%clk 00:15:12]} {[%emt
00:04:45]} 30. Rxd8+ {[%clk 00:41:30]} {[%emt 00:00:03]} Ke7 {[%clk 00:15:41]}
31. Rxh8 {[%clk 00:40:46]} {[%emt 00:01:13]} 1-0

[Event "The Schackveckan 2023: Göteborg open"]
[Site "Göteborgs schackcentrum, Vegagatan 20, Gothenburg, Sweden"]
[Date "2023.08.12"]
[Round "6.14"]
[White "Kosmidis, Thomas"]
[Black "Johansson, Jan"]
[Result "1-0"]
[TimeControl "15 minutes + 5 seconds per move from move one (Round 1 - 4) / 90 minutes + 30 seconds per move from move one (Round 5 - 8)"]
[WhiteFideId "1753380"]
[BlackFideId "1747568"]
[WhiteElo "1721"]
[BlackElo "1694"]

1. d4 {[%clk 01:30:53]} {[%emt 00:00:06]} Nf6 {[%clk 01:30:36]} {[%emt
00:00:24]} 2. c4 {[%clk 01:31:08]} {[%emt 00:00:15]} e6 {[%clk 01:30:54]}
{[%emt 00:00:12]} 3. Nc3 {[%clk 01:31:23]} {[%emt 00:00:15]} Bb4 {[%clk
01:30:51]} {[%emt 00:00:34]} 4. Qc2 {[%clk 01:31:37]} {[%emt 00:00:15]} d5
{[%clk 01:29:52]} {[%emt 00:01:29]} 5. cxd5 {[%clk 01:31:00]} {[%emt 00:01:09]}
exd5 {[%clk 01:30:08]} {[%emt 00:00:14]} 6. Bg5 {[%clk 01:30:46]} {[%emt
00:00:43]} h6 {[%clk 01:27:04]} {[%emt 00:03:34]} 7. Bh4 {[%clk 01:30:00]}
{[%emt 00:01:16]} O-O {[%clk 01:21:58]} {[%emt 00:05:36]} 8. e3 {[%clk
01:30:07]} {[%emt 00:00:23]} Nbd7 {[%clk 01:20:07]} {[%emt 00:02:21]} 9. Nf3
{[%clk 01:29:41]} {[%emt 00:00:55]} Re8 {[%clk 01:20:18]} {[%emt 00:00:20]} 10.
Be2 {[%clk 01:29:35]} {[%emt 00:00:35]} c6 {[%clk 01:18:25]} {[%emt 00:02:23]}
11. O-O {[%clk 01:28:46]} {[%emt 00:01:19]} g5 {[%clk 01:14:19]} {[%emt
00:04:37]} 12. Bg3 {[%clk 01:29:06]} {[%emt 00:00:09]} Nh5 {[%clk 01:13:33]}
{[%emt 00:01:17]} 13. a3 {[%clk 01:25:30]} {[%emt 00:04:06]} Nxg3 {[%clk
01:11:57]} {[%emt 00:02:06]} 14. hxg3 {[%clk 01:25:43]} {[%emt 00:00:17]} Bd6
{[%clk 01:10:47]} {[%emt 00:01:40]} 15. b4 {[%clk 01:25:12]} {[%emt 00:01:00]}
Nf6 {[%clk 01:06:25]} {[%emt 00:04:53]} 16. Nd2 {[%clk 01:23:00]} {[%emt
00:02:41]} Qe7 {[%clk 01:03:53]} {[%emt 00:03:03]} 17. Nd1 {[%clk 01:20:13]}
{[%emt 00:03:17]} a5 {[%clk 01:00:23]} {[%emt 00:04:01]} 18. b5 {[%clk
01:18:42]} {[%emt 00:02:01]} Bxa3 {[%clk 00:58:13]} {[%emt 00:02:40]} 19. bxc6
{[%clk 01:18:08]} {[%emt 00:01:03]} bxc6 {[%clk 00:58:30]} {[%emt 00:00:13]} 20.
Bd3 {[%clk 01:07:08]} {[%emt 00:11:30]} Ba6 {[%clk 00:54:10]} {[%emt 00:04:50]}
21. Bxa6 {[%clk 01:06:59]} {[%emt 00:00:39]} Rxa6 {[%clk 00:54:33]} {[%emt
00:00:07]} 22. Qd3 {[%clk 01:07:13]} {[%emt 00:00:14]} Bb4 {[%clk 00:51:26]}
{[%emt 00:03:38]} 23. Qxa6 {[%clk 01:07:04]} {[%emt 00:00:40]} Bxd2 {[%clk
00:51:47]} {[%emt 00:00:09]} 24. Qxc6 {[%clk 01:05:24]} {[%emt 00:02:10]} Rd8
{[%clk 00:50:23]} {[%emt 00:01:54]} 25. Qc2 {[%clk 01:03:52]} {[%emt 00:02:01]}
Bb4 {[%clk 00:49:13]} {[%emt 00:01:41]} 26. Nb2 {[%clk 01:02:47]} {[%emt
00:01:35]} Ne4 {[%clk 00:40:32]} {[%emt 00:09:10]} 27. Qd3 {[%clk 00:58:51]}
{[%emt 00:04:17]} g4 {[%clk 00:38:07]} {[%emt 00:03:05]} 28. Na4 {[%clk
00:57:55]} {[%emt 00:01:26]} h5 {[%clk 00:38:15]} {[%emt 00:00:22]} 29. Rfc1
{[%clk 00:56:43]} {[%emt 00:01:34]} h4 {[%clk 00:38:20]} {[%emt 00:00:32]} 30.
Nc5 {[%clk 00:52:44]} {[%emt 00:04:29]} Bxc5 {[%clk 00:34:46]} {[%emt
00:04:05]} 31. dxc5 {[%clk 00:53:09]} {[%emt 00:00:05]} hxg3 {[%clk 00:34:56]}
{[%emt 00:00:19]} 32. fxg3 {[%clk 00:45:30]} {[%emt 00:08:10]} Nxg3 {[%clk
00:31:57]} {[%emt 00:03:29]} 33. c6 {[%clk 00:43:48]} {[%emt 00:02:11]} Qh4
{[%clk 00:29:08]} {[%emt 00:03:20]} 34. c7 {[%clk 00:42:57]} {[%emt 00:01:21]}
Rc8 {[%clk 00:25:18]} {[%emt 00:04:19]} 35. Rab1 {[%clk 00:40:48]} {[%emt
00:02:39]} Qh1+ {[%clk 00:09:26]} {[%emt 00:16:21]} 36. Kf2 {[%clk 00:40:45]}
{[%emt 00:00:34]} Qh4 {[%clk 00:09:43]} {[%emt 00:00:13]} 37. Rb8 {[%clk
00:36:35]} {[%emt 00:04:41]} Ne4+ {[%clk 00:09:30]} {[%emt 00:00:43]} 38. Ke2
{[%clk 00:36:17]} {[%emt 00:00:45]} Qf2+ {[%clk 00:05:13]} {[%emt 00:04:49]} 39.
Kd1 {[%clk 00:36:39]} {[%emt 00:00:09]} Qf5 {[%clk 00:01:36]} {[%emt 00:04:06]}
40. Rxc8+ {[%clk 00:36:12]} {[%emt 00:00:58]} Qxc8 {[%clk 00:01:50]} {[%emt
00:00:16]} 41. Qxd5 {[%clk 00:35:34]} {[%emt 00:01:08]} 1-0

[Event "The Schackveckan 2023: Göteborg open"]
[Site "Göteborgs schackcentrum, Vegagatan 20, Gothenburg, Sweden"]
[Date "2023.08.12"]
[Round "6.15"]
[White "Al Saab, Ranny"]
[Black "Torres, Lucas"]
[Result "1/2-1/2"]
[TimeControl "15 minutes + 5 seconds per move from move one (Round 1 - 4) / 90 minutes + 30 seconds per move from move one (Round 5 - 8)"]
[WhiteFideId "1768360"]
[BlackFideId "1769464"]
[WhiteElo "1598"]
[BlackElo "1501"]

1. e4 {[%clk 01:30:59]} e6 {[%clk 01:30:48]} {[%emt 00:00:12]} 2. d4 {[%clk
01:31:24]} {[%emt 00:00:05]} d5 {[%clk 01:31:15]} {[%emt 00:00:03]} 3. exd5
{[%clk 01:31:41]} {[%emt 00:00:14]} exd5 {[%clk 01:31:36]} {[%emt 00:00:08]} 4.
c3 {[%clk 01:31:48]} {[%emt 00:00:23]} Nf6 {[%clk 01:31:10]} {[%emt 00:00:56]}
5. Nf3 {[%clk 01:32:03]} {[%emt 00:00:16]} Nc6 {[%clk 01:30:45]} {[%emt
00:00:54]} 6. Bf4 {[%clk 01:32:12]} {[%emt 00:00:19]} Bd6 {[%clk 01:30:30]}
{[%emt 00:00:47]} 7. Bxd6 {[%clk 01:32:13]} {[%emt 00:00:29]} Qxd6 {[%clk
01:30:50]} {[%emt 00:00:10]} 8. Be2 {[%clk 01:32:08]} {[%emt 00:00:36]} Bf5
{[%clk 01:30:27]} {[%emt 00:00:52]} 9. Nbd2 {[%clk 01:32:24]} {[%emt 00:00:14]}
O-O {[%clk 01:30:19]} {[%emt 00:00:37]} 10. O-O {[%clk 01:32:44]} {[%emt
00:00:11]} Rfe8 {[%clk 01:30:10]} {[%emt 00:00:40]} 11. Re1 {[%clk 01:32:55]}
{[%emt 00:00:16]} Re7 {[%clk 01:29:29]} {[%emt 00:01:13]} 12. Bb5 {[%clk
01:32:39]} {[%emt 00:00:46]} Rxe1+ {[%clk 01:25:05]} {[%emt 00:04:54]} 13. Qxe1
{[%clk 01:32:53]} {[%emt 00:00:16]} Re8 {[%clk 01:25:13]} {[%emt 00:00:21]} 14.
Qd1 {[%clk 01:32:47]} {[%emt 00:00:30]} a6 {[%clk 01:23:31]} {[%emt 00:02:19]}
15. Ba4 {[%clk 01:33:04]} {[%emt 00:00:09]} b5 {[%clk 01:23:02]} {[%emt
00:01:03]} 16. Bc2 {[%clk 01:33:26]} {[%emt 00:00:08]} Ne4 {[%clk 01:18:55]}
{[%emt 00:04:37]} 17. Nxe4 {[%clk 01:29:17]} {[%emt 00:04:37]} dxe4 {[%clk
01:18:34]} {[%emt 00:00:53]} 18. Nd2 {[%clk 01:29:09]} {[%emt 00:00:31]} Qg6
{[%clk 01:17:41]} {[%emt 00:01:29]} 19. Qf1 {[%clk 01:28:14]} {[%emt 00:01:22]}
Ne7 {[%clk 01:05:56]} {[%emt 00:12:17]} 20. a4 {[%clk 01:26:52]} {[%emt
00:01:55]} Nd5 {[%clk 01:04:37]} {[%emt 00:01:47]} 21. axb5 {[%clk 01:27:01]}
{[%emt 00:00:22]} axb5 {[%clk 01:04:42]} {[%emt 00:00:27]} 22. Qxb5 {[%clk
01:26:13]} {[%emt 00:01:16]} c6 {[%clk 01:04:39]} {[%emt 00:00:33]} 23. Qb7
{[%clk 01:25:08]} {[%emt 00:01:35]} Nf4 {[%clk 01:01:28]} {[%emt 00:03:40]} 24.
g3 {[%clk 01:25:23]} {[%emt 00:00:16]} e3 {[%clk 00:46:56]} {[%emt 00:15:03]}
25. Ra8 {[%clk 01:22:01]} {[%emt 00:03:52]} exf2+ {[%clk 00:44:29]} {[%emt
00:02:56]} 26. Kxf2 {[%clk 01:21:53]} {[%emt 00:00:39]} Nh3+ {[%clk 00:44:40]}
{[%emt 00:00:18]} 27. Kg2 {[%clk 01:21:52]} {[%emt 00:00:18]} Rf8 {[%clk
00:35:43]} {[%emt 00:09:40]} 28. Qb8 {[%clk 01:21:51]} {[%emt 00:00:31]} Nf4+
{[%clk 00:33:38]} {[%emt 00:02:33]} 29. Qxf4 {[%clk 01:21:17]} {[%emt
00:01:05]} Rxa8 {[%clk 00:32:47]} {[%emt 00:01:21]} 30. Qxf5 {[%clk 01:21:37]}
{[%emt 00:00:11]} Qh6 {[%clk 00:32:33]} {[%emt 00:00:43]} 31. Nf3 {[%clk
01:21:23]} {[%emt 00:00:43]} g6 {[%clk 00:29:51]} {[%emt 00:03:13]} 32. Qe4
{[%clk 01:18:55]} {[%emt 00:02:51]} Rc8 {[%clk 00:29:19]} {[%emt 00:01:09]} 33.
Bb3 {[%clk 01:18:42]} {[%emt 00:00:33]} Rb8 {[%clk 00:27:24]} {[%emt 00:02:34]}
34. Qc2 {[%clk 01:18:52]} {[%emt 00:00:18]} Qe3 {[%clk 00:24:01]} {[%emt
00:03:54]} 35. Ne5 {[%clk 01:18:46]} {[%emt 00:00:38]} Rb7 {[%clk 00:23:42]}
{[%emt 00:00:49]} 36. Bxf7+ {[%clk 01:18:38]} {[%emt 00:00:39]} Kg7 {[%clk
00:22:37]} {[%emt 00:01:35]} 37. Bb3 {[%clk 01:16:44]} {[%emt 00:02:19]} Rxb3
{[%clk 00:21:53]} {[%emt 00:01:17]} 38. Nc4 {[%clk 01:06:49]} {[%emt 00:10:28]}
Qe6 {[%clk 00:20:15]} {[%emt 00:02:06]} 39. Qxb3 {[%clk 01:07:10]} {[%emt
00:00:10]} Qe2+ {[%clk 00:20:28]} {[%emt 00:00:17]} 1/2-1/2

[Event "The Schackveckan 2023: Göteborg open"]
[Site "Göteborgs schackcentrum, Vegagatan 20, Gothenburg, Sweden"]
[Date "2023.08.12"]
[Round "6.16"]
[White "Eldh, Hjalmar"]
[Black "Svensson, Leif"]
[Result "1/2-1/2"]
[TimeControl "15 minutes + 5 seconds per move from move one (Round 1 - 4) / 90 minutes + 30 seconds per move from move one (Round 5 - 8)"]
[WhiteFideId "1767968"]
[BlackFideId "1702459"]
[WhiteElo "1738"]
[BlackElo "2038"]

1. e4 {[%clk 01:30:57]} {[%emt 00:00:03]} Nf6 {[%clk 01:30:54]} {[%emt
00:00:07]} 2. e5 {[%clk 01:31:13]} {[%emt 00:00:14]} Nd5 {[%clk 01:31:19]}
{[%emt 00:00:04]} 3. d4 {[%clk 01:31:21]} {[%emt 00:00:22]} d6 {[%clk
01:31:45]} {[%emt 00:00:05]} 4. Nf3 {[%clk 01:31:43]} {[%emt 00:00:07]} g6
{[%clk 01:32:10]} {[%emt 00:00:05]} 5. Bc4 {[%clk 01:30:00]} {[%emt 00:02:12]}
e6 {[%clk 01:29:57]} {[%emt 00:02:43]} 6. Nc3 {[%clk 01:25:57]} {[%emt
00:04:34]} Nxc3 {[%clk 01:29:54]} {[%emt 00:00:33]} 7. bxc3 {[%clk 01:26:20]}
{[%emt 00:00:07]} Bg7 {[%clk 01:30:17]} {[%emt 00:00:06]} 8. Bg5 {[%clk
01:26:14]} {[%emt 00:00:36]} Qd7 {[%clk 01:28:27]} {[%emt 00:02:20]} 9. Bf6
{[%clk 01:23:52]} {[%emt 00:02:53]} Bxf6 {[%clk 01:28:32]} {[%emt 00:00:26]} 10.
exf6 {[%clk 01:24:14]} {[%emt 00:00:08]} Qd8 {[%clk 01:28:49]} {[%emt
00:00:12]} 11. d5 {[%clk 01:24:07]} {[%emt 00:00:36]} Qxf6 {[%clk 01:28:12]}
{[%emt 00:01:08]} 12. O-O {[%clk 01:23:53]} {[%emt 00:00:44]} Qxc3 {[%clk
01:28:15]} {[%emt 00:00:27]} 13. Bb5+ {[%clk 01:23:30]} {[%emt 00:00:53]} c6
{[%clk 01:28:12]} {[%emt 00:00:33]} 14. dxe6 {[%clk 01:16:26]} {[%emt
00:07:35]} Bxe6 {[%clk 01:26:33]} {[%emt 00:02:08]} 15. Qxd6 {[%clk 01:15:54]}
{[%emt 00:01:02]} cxb5 {[%clk 01:25:13]} {[%emt 00:01:51]} 16. Nd4 {[%clk
01:15:57]} {[%emt 00:00:24]} Nd7 {[%emt 00:12:06]} 17. Nxe6 {[%clk 00:57:48]}
{[%emt 00:18:35]} fxe6 {[%clk 01:13:56]} {[%emt 00:00:17]} 18. Qxe6+ {[%clk
00:58:13]} {[%emt 00:00:05]} Kd8 {[%clk 01:14:19]} {[%emt 00:00:07]} 19. Rad1
{[%clk 00:58:31]} {[%emt 00:00:09]} Qg7 {[%clk 01:10:14]} {[%emt 00:04:37]} 20.
Rfe1 {[%clk 00:56:28]} {[%emt 00:02:33]} Rc8 {[%clk 01:09:10]} {[%emt
00:01:34]} 21. Rxd7+ {[%clk 00:56:32]} {[%emt 00:00:27]} Qxd7 {[%clk 01:09:26]}
{[%emt 00:00:14]} 22. Qf6+ {[%clk 00:56:52]} {[%emt 00:00:09]} Kc7 {[%clk
01:09:48]} {[%emt 00:00:08]} 23. Re7 {[%emt 00:00:09]} Rhe8 {[%clk 01:05:33]}
{[%emt 00:04:42]} 24. Rxd7+ {[%clk 00:56:56]} {[%emt 00:00:51]} Kxd7 {[%clk
01:05:53]} {[%emt 00:00:10]} 25. Qf7+ {[%clk 00:53:53]} {[%emt 00:03:32]} Re7
{[%clk 01:01:31]} {[%emt 00:04:52]} 26. Qd5+ {[%clk 00:54:17]} {[%emt
00:00:06]} Kc7 {[%clk 01:01:25]} {[%emt 00:00:35]} 27. h4 {[%clk 00:47:33]}
{[%emt 00:07:17]} a6 {[%clk 00:57:45]} {[%emt 00:04:09]} 28. c4 {[%clk
00:46:15]} {[%emt 00:01:47]} bxc4 {[%clk 00:57:38]} {[%emt 00:00:38]} 29. Qxc4+
{[%clk 00:46:38]} {[%emt 00:00:07]} Kb8 {[%clk 00:57:45]} {[%emt 00:00:23]} 30.
Qd4 {[%clk 00:46:36]} {[%emt 00:00:29]} Re1+ {[%clk 00:54:12]} {[%emt
00:04:06]} 31. Kh2 {[%clk 00:46:50]} {[%emt 00:00:16]} Re2 {[%clk 00:54:33]}
{[%emt 00:00:08]} 32. Qd6+ {[%clk 00:46:17]} {[%emt 00:01:03]} Ka8 {[%clk
00:54:49]} {[%emt 00:00:13]} 33. Qd7 {[%clk 00:46:34]} {[%emt 00:00:15]} Rc6
{[%clk 00:52:22]} {[%emt 00:02:56]} 34. a4 {[%clk 00:46:11]} {[%emt 00:00:53]}
h5 {[%clk 00:48:54]} {[%emt 00:03:58]} 35. a5 {[%clk 00:45:37]} {[%emt
00:01:04]} Rcc2 {[%clk 00:44:42]} {[%emt 00:04:42]} 36. Qd8+ {[%clk 00:44:48]}
{[%emt 00:01:19]} Ka7 {[%clk 00:45:07]} {[%emt 00:00:06]} 37. Qb6+ {[%clk
00:45:13]} {[%emt 00:00:06]} Ka8 {[%clk 00:45:19]} {[%emt 00:00:17]} 38. Qd8+
{[%clk 00:45:37]} {[%emt 00:00:05]} Ka7 {[%clk 00:45:46]} {[%emt 00:00:04]} 39.
Qb6+ {[%clk 00:45:58]} {[%emt 00:00:09]} Ka8 {[%clk 00:46:02]} {[%emt
00:00:13]} 40. Qd8+ {[%clk 00:46:16]} {[%emt 00:00:10]} 1/2-1/2

[Event "The Schackveckan 2023: Göteborg open"]
[Site "Göteborgs schackcentrum, Vegagatan 20, Gothenburg, Sweden"]
[Date "2023.08.12"]
[Round "6.17"]
[White "Pintaric, Felix"]
[Black "Lindhe Nilsson, Filip"]
[Result "1-0"]
[TimeControl "15 minutes + 5 seconds per move from move one (Round 1 - 4) / 90 minutes + 30 seconds per move from move one (Round 5 - 8)"]
[WhiteFideId "1776096"]
[BlackFideId "1779826"]
[WhiteElo "1483"]
[BlackElo "1818"]

1. e4 {[%clk 01:30:54]} {[%emt 00:00:06]} c6 {[%clk 01:30:38]} {[%emt
00:00:23]} 2. d4 {[%clk 01:31:21]} {[%emt 00:00:02]} d5 {[%clk 01:31:03]}
{[%emt 00:00:06]} 3. exd5 {[%clk 01:31:42]} {[%emt 00:00:09]} cxd5 {[%clk
01:31:21]} {[%emt 00:00:11]} 4. Bd3 {[%clk 01:32:07]} {[%emt 00:00:05]} Nc6
{[%clk 01:31:37]} {[%emt 00:00:15]} 5. c3 {[%clk 01:32:32]} {[%emt 00:00:05]}
Nf6 {[%clk 01:31:25]} {[%emt 00:00:42]} 6. Bf4 {[%clk 01:32:44]} {[%emt
00:00:18]} Bg4 {[%clk 01:30:19]} {[%emt 00:01:37]} 7. Qb3 {[%clk 01:33:06]}
{[%emt 00:00:08]} Qd7 {[%clk 01:27:58]} {[%emt 00:02:50]} 8. Nd2 {[%clk
01:33:21]} {[%emt 00:00:15]} a6 {[%clk 01:27:26]} {[%emt 00:01:02]} 9. Ngf3
{[%clk 01:33:29]} {[%emt 00:00:22]} e6 {[%clk 01:26:37]} {[%emt 00:01:19]} 10.
O-O {[%clk 01:33:39]} {[%emt 00:00:19]} Be7 {[%clk 01:24:50]} {[%emt 00:02:17]}
11. h3 {[%clk 01:33:44]} {[%emt 00:00:26]} Bh5 {[%clk 01:24:45]} {[%emt
00:00:35]} 12. Ne5 {[%clk 01:33:55]} {[%emt 00:00:20]} Nxe5 {[%clk 01:21:57]}
{[%emt 00:03:18]} 13. dxe5 {[%clk 01:34:14]} {[%emt 00:00:10]} Ng8 {[%clk
01:22:15]} {[%emt 00:00:12]} 14. c4 {[%clk 01:33:10]} {[%emt 00:01:34]} d4
{[%clk 01:13:35]} {[%emt 00:09:09]} 15. Rfe1 {[%clk 01:30:41]} {[%emt
00:02:59]} Nh6 {[%clk 01:10:29]} {[%emt 00:03:36]} 16. Bxh6 {[%clk 01:29:50]}
{[%emt 00:01:22]} gxh6 {[%clk 01:10:49]} {[%emt 00:00:10]} 17. Ne4 {[%clk
01:29:48]} {[%emt 00:00:31]} Bg6 {[%clk 01:09:07]} {[%emt 00:02:12]} 18. Rac1
{[%clk 01:29:49]} {[%emt 00:00:30]} Rg8 {[%clk 01:08:27]} {[%emt 00:01:09]} 19.
c5 {[%clk 01:29:38]} {[%emt 00:00:42]} Qd5 {[%clk 00:53:39]} {[%emt 00:15:17]}
20. Bc4 {[%clk 01:28:17]} {[%emt 00:01:52]} Qc6 {[%clk 00:47:52]} {[%emt
00:06:16]} 21. Bd3 {[%clk 01:23:28]} {[%emt 00:05:19]} Bf5 {[%clk 00:39:17]}
{[%emt 00:09:05]} 22. Kh2 {[%clk 01:20:50]} {[%emt 00:03:10]} h5 {[%clk
00:36:58]} {[%emt 00:02:48]} 23. g3 {[%clk 01:19:15]} {[%emt 00:02:05]} h4
{[%clk 00:27:13]} {[%emt 00:10:15]} 24. Nd6+ {[%clk 01:18:43]} {[%emt
00:01:02]} Bxd6 {[%clk 00:26:44]} {[%emt 00:00:58]} 25. cxd6 {[%clk 01:19:02]}
{[%emt 00:00:12]} Qf3 {[%clk 00:22:45]} {[%emt 00:04:29]} 26. Bb5+ {[%clk
01:19:03]} {[%emt 00:00:29]} 1-0